Cogmind - Beta 15 @@@ ROGUE MODE // 2025.10.13 @ 19:34:29 Player: the Result: Destroyed by AG-37167 with Assembled Focal Cannon Performance ------------- Evolutions (3) 1500 Regions Visited (15) 3000 Robots Destroyed (142) 710 Value Destroyed (6490) 6490 Prototype IDs (52) 1040 Alien Tech Used (1) 200 Bonus (4274) 4274 TOTAL SCORE: 17214 Bonus ------- High Alert Combat Kills 410 Follower Combat Kills 1617 Entered Garrisons 400 Aligned with FarCom 300 Destroyed Z-Imprinter 1000 Triggered Deep Caves Wall 500 Exposed GOLEM Chamber 500 Acquired ECA 300 Friendly Fire -753 Cogmind --------- Core Integrity 0/700 Matter 146/300 Energy 16/100 System Corruption 0% Temperature Cool (12) Movement Core (50) Location -7/Deep Caves Parts ------- > --- POWER (2) -------- (None) > --- PROPULSION (4) --- Assembled Alloy Leg > --- UTILITY (5) ------ GOLEM Unit > --- WEAPON (3) ------- (None) > --- INVENTORY (5) ---- YOLO Cannon Guided Missile Launcher Power Maul Peak State ------------ > --- POWER ------------ Antimatter Reactor Zionite Light DM Reactor > --- PROPULSION ------- Zionite Glidesys I Zionite Glidesys I Zionite Glidesys I Zionite Glidesys I > --- UTILITY ---------- Experimental Heat Sink Experimental Heat Sink High-capacity Storage Unit Zionite Heavy Carapace > --- WEAPON ----------- Zionite Phaser-S Molecular Deconstructor > --- INVENTORY -------- Zionite Composite Leg I Experimental Heat Sink Advanced Cooling System Zionite Metafield Generator Encrypted Comm Array Zionite Weapon Casing Improved Medium Armor Plating Improved Powered Armor Graphene Brace Authchip [Propulsion] Bomb Drone Bay Zionite Phaser-S Zionite Laser-M Proton Burst Cannon YOLO Cannon Guided Missile Launcher Power Maul [Rating: 104] Favorites ----------- Power Light Angular Momentum Engine Engine Light Angular Momentum Engine Power Core Light Nuclear Core Reactor Antimatter Reactor Propulsion Improved Carbon-fiber Leg Treads Light Treads Leg Improved Carbon-fiber Leg Hover Unit Zionite Glidesys I Utility Improved Cooling System Device Improved Cooling System Storage Large Storage Unit Processor Core Analyzer Hackware Hacking Suite Protection Improved Medium Armor Plating Weapon Plasma Rifle Energy Gun Plasma Rifle Energy Cannon YOLO Cannon Ballistic Gun Assault Rifle Ballistic Cannon Light Cannon Launcher Heavy Rocket Launcher Special Weapon Molecular Deconstructor Impact Weapon Power Maul Slashing Weapon Katana Build | -11 -10 -10 -10 -9 -8 -8 -7 -7 -7 -7 -7 -7 -7 -7 -7 ------- Run | Yrd Mat Min Exi Min Mat Gar Fac Was Fac Gar Fac Low Low Zio Dee Slots Evolved 6 | . . . . . 4 . 2 . . . . . . . . Power . | . . . . . . . . . . . . . . . . Propulsion 2 | . . . . . 2 . . . . . . . . . . Utility 3 | . . . . . 1 . 2 . . . . . . . . Weapon 1 | . . . . . 1 . . . . . . . . . . Parts Attached 142 | 8 12 1 3 2 44 9 7 8 1 2 5 2 1 8 29 Power 15 | 2 3 1 . . 4 1 . 1 . . . 1 . . 2 Engine 10 | 2 3 1 . . 3 1 . . . . . . . . . Core 1 | . . . . . 1 . . . . . . . . . . Reactor 4 | . . . . . . . . 1 . . . 1 . . 2 Propulsion 34 | 2 3 . . . 13 1 1 . . . 2 . 1 1 10 Treads 3 | . 3 . . . . . . . . . . . . . . Leg 22 | 2 . . . . 13 1 1 . . . 2 . 1 1 1 Wheel . | . . . . . . . . . . . . . . . . Hover 9 | . . . . . . . . . . . . . . . 9 Flight . | . . . . . . . . . . . . . . . . Utility 45 | 2 2 . 1 1 9 5 5 3 1 . 3 1 . . 12 Device 23 | 1 1 . . . 5 4 3 2 . . 1 . . . 6 Storage 7 | 1 1 . 1 . 1 . 1 . . . . . . . 2 Processor 4 | . . . . 1 1 . . . 1 . 1 . . . . Hackware 1 | . . . . . 1 . . . . . . . . . . Protection 10 | . . . . . 1 1 1 1 . . 1 1 . . 4 Artifact . | . . . . . . . . . . . . . . . . Weapon 48 | 2 4 . 2 1 18 2 1 4 . 2 . . . 7 5 Energy Gun 30 | 1 . . 2 1 14 1 1 3 . . . . . 3 4 Energy Cannon 2 | . . . . . . . . 1 . . . . . . 1 Ballistic Gun 3 | 1 1 . . . 1 . . . . . . . . . . Ballistic Cannon 2 | . 2 . . . . . . . . . . . . . . Launcher 6 | . . . . . 2 1 . . . 1 . . . 2 . Special Weapon 3 | . 1 . . . . . . . . . . . . 2 . Impact Weapon 1 | . . . . . . . . . . 1 . . . . . Slashing Weapon 1 | . . . . . 1 . . . . . . . . . . Piercing Weapon . | . . . . . . . . . . . . . . . . Special Melee Weapon . | . . . . . . . . . . . . . . . . Unidentified Prototypes 25 | . . . . . 5 . 1 1 . . . 1 . 4 13 Parts Lost 25 | . 2 . . . 3 1 . 1 . . 1 1 . . 16 Power 3 | . 1 . . . 2 . . . . . . . . . . Propulsion 15 | . . . . . . 1 . . . . 1 1 . . 12 Utility 4 | . . . . . . . . 1 . . . . . . 3 Weapon 3 | . 1 . . . 1 . . . . . . . . . 1 Highest Loss Streak 8 | . 2 . . . 1 1 . 1 . . 1 1 . . 8 To Critical Strikes . | . . . . . . . . . . . . . . . . Average Backups 14 | 1 13 14 14 13 12 12 12 14 17 18 17 16 17 14 11 Power . | . . . . . . . . 1 2 2 1 1 2 1 . Propulsion 2 | . 4 4 4 3 . 3 2 3 2 2 2 1 . . . Utility 4 | . 1 1 2 2 3 3 3 3 5 6 6 6 6 6 6 Weapon 7 | . 7 9 8 7 7 6 6 6 8 7 7 7 8 6 4 Tool/Special . | . . . . . . . . . . . . . . . . Unused Backups 34 | . 6 2 . 6 9 1 . . . 1 1 . . 1 7 Power 1 | . . . . . . . . . . . 1 . . . . Propulsion 6 | . 1 2 . 2 1 . . . . . . . . . . Utility 9 | . 2 . . 1 2 . . . . . . . . . 4 Weapon 17 | . 3 . . 3 6 1 . . . 1 . . . 1 2 Tool/Special 1 | . . . . . . . . . . . . . . . 1 Average Slot Usage (%) 96 | . 97 100 88 100 99 98 99 98 98 100 100 94 92 94 86 Engine 8 | . 12 14 14 14 8 9 7 7 7 7 7 7 7 4 . Reactor 1 | . . . . . . . . . . . . 1 . 6 12 Treads 7 | . 23 28 28 28 . . . . . . . . . . . Leg 20 | . 4 . . . 35 35 30 30 30 30 30 28 28 27 8 Hover 1 | . . . . . . . . . . . . . . . 16 Device 13 | . 14 14 14 7 8 8 21 26 15 15 15 14 14 14 14 Storage 9 | . 14 14 14 14 9 9 7 7 7 7 7 7 7 7 5 Processor 4 | . . . . 6 9 9 1 . 5 7 7 7 7 7 1 Protection 3 | . . . . . . . 7 2 7 7 6 6 7 7 9 Energy Gun 16 | . . . 10 28 25 23 23 22 22 20 17 19 21 17 11 Ballistic Gun 1 | . 10 . . . . . . . . . . . . . . Ballistic Cannon 4 | . 16 26 6 . . . . . . . . . . . . Peak Build Rating 104 | 7 8 8 10 14 45 49 56 67 63 63 66 72 68 84 104 Average Rating 45 | 4 7 8 7 11 40 45 54 59 61 62 62 66 67 74 87 On Entrance 41 | . 7 8 8 10 14 43 47 55 60 63 63 62 68 68 84 Naked Turns . | . . . . . . . . . . . . . . . . Heaviest Build 97 | 14 30 32 32 31 43 42 70 79 72 72 76 84 72 94 97 Greatest Support 74 | 20 40 40 40 40 74 72 72 72 72 72 72 72 74 74 74 Greatest Overweight (x) 4 | . 1 . . . . . . 1 . 1 1 1 . 1 4 Average Overweight (x) . | . . . . . . . . . . . . . . . . Largest Inventory Capacity 20 | 8 15 15 15 15 15 15 20 20 20 20 20 20 20 20 20 Average Capacity 16 | 5 13 15 15 15 15 15 16 20 20 20 20 20 20 20 16 Most Carried 20 | 6 15 15 15 15 15 15 15 20 20 20 20 20 20 20 20 Average Carried 16 | 1 13 14 14 14 14 14 14 16 19 19 19 18 20 19 15 Final Capacity 20 | 8 15 15 15 15 15 15 20 20 20 20 20 20 20 20 5 Final Carried 20 | 6 15 15 15 15 15 15 15 20 20 20 20 20 20 20 5 Class Distribution -------------------- 41% | Mutant 24% | Skirmisher 14% | Gunner 6% | Derelict-Gunner 4% | Tank 3% | Scavenger-Skirmisher Dominant Class ---------------- Mutant | -10/Materials Mutant | -10/Mines Mutant | -10/Exiles Mutant | -9/Mines Skirmisher | -8/Materials Skirmisher | -8/Garrison Tank | -7/Factory Skirmisher | -7/Waste Skirmisher | -7/Factory Skirmisher | -7/Garrison Mutant | -7/Factory Gunner | -7/Lower Caves Gunner | -7/Lower Caves Gunner | -7/Zion Scavenger-Tank | -7/Deep Caves Resources | -11 -10 -10 -10 -9 -8 -8 -7 -7 -7 -7 -7 -7 -7 -7 -7 ----------- Run | Yrd Mat Min Exi Min Mat Gar Fac Was Fac Gar Fac Low Low Zio Dee Matter Collected 3900 | 316 640 291 32 87 641 335 57 103 140 135 327 185 60 200 351 Remotely . | . . . . . . . . . . . . . . . . Salvage Created 5609 | 148 761 330 . 53 922 1128 57 374 237 399 486 223 10 . 481 Parts 245 | 13 44 22 . 2 45 54 3 5 13 5 21 2 . . 16 Haulers Intercepted 10 | . 2 . . . 6 . . . 1 . 1 . . . . Recyclers Shooed 5 | . 2 1 . 2 . . . . . . . . . . . Parts Field Recycled . | . . . . . . . . . . . . . . . . Retrieved Matter . | . . . . . . . . . . . . . . . . Parts Self-Destructed 21 | . . . . . . . . . . . . 13 7 1 . Prevented . | . . . . . . . . . . . . . . . . Kills | -11 -10 -10 -10 -9 -8 -8 -7 -7 -7 -7 -7 -7 -7 -7 -7 ------- Run | Yrd Mat Min Exi Min Mat Gar Fac Was Fac Gar Fac Low Low Zio Dee Combat Hostiles Destroyed 121 | . 11 7 . . 16 24 . 1 3 8 5 5 1 . 40 Melee 2 | . . . . . . . . . 1 . . . . . 1 Guns 59 | . 7 . . . 13 21 . . 1 5 5 3 . . 4 Cannons 12 | . 4 7 . . . . . . . . . . . . 1 AOE 43 | . . . . . 3 2 . . . 3 . 2 . . 33 Classes Destroyed 22 | 2 7 . . . 1 2 . 2 1 1 . 2 1 . 3 Worker 7 | . 3 1 . . 1 . . . 1 . 1 . . . . Builder 6 | . 2 1 . . . . . . 1 . 2 . . . . Tunneler 11 | 5 1 5 . . . . . . . . . . . . . Hauler 10 | . 2 . . . 6 . . . 1 . 1 . . . . Recycler 8 | 1 3 1 . . 1 . 1 . . . 1 . . . . Mechanic 1 | . . . . . . . . . . . 1 . . . . Operator 2 | . 2 . . . . . . . . . . . . . . Watcher 4 | . 1 . . . 2 . . . . . 1 . . . . Swarmer 17 | . 3 . . . 10 3 . . . . 1 . . . . Grunt 36 | . 8 7 . . 3 12 . . 1 3 2 . . . . Sentry 12 | . . . . . 4 7 . . . . . 1 . . . Specialist 1 | . . . . . . 1 . . . . . . . . . Hunter 2 | . . . . . . 1 . . 1 . . . . . . Programmer 8 | . . . . . . . . . 1 5 2 . . . . Compactor 1 | . . . . . . . . 1 . . . . . . . Z-Light 5 | . . . . . . . . . . . . . . . 5 Thief 1 | . . . . . . . . . . . . . 1 . . Assembled 34 | . . . . . . . . . . . . . . . 34 Golem 1 | . . . . . . . . . . . . . . . 1 Surgeon 2 | . . . . . . . . . . 2 . . . . . Thug 3 | . . . . 1 . . . . . . . 2 . . . Savage 1 | . . . . . . . . . . . . 1 . . . Martyr 2 | . . . . . . . . 2 . . . . . . . Mutant 1 | . . . . . . . . . . . . 1 . . . Best Kill Streak 34 | 4 4 2 . . 4 3 1 1 2 5 3 4 1 . 34 Combat Bots Only 34 | . 3 2 . . 4 3 . 1 1 4 2 4 1 . 34 Max Kills in Single Turn 7 | 1 2 1 . 1 4 2 1 1 2 2 2 1 1 . 7 Gunslinging 1 | . 1 . . . 1 . . . . . . . . . . Exploded 7 | . . . . . 3 2 . . . 2 . 1 . . 7 Melee 1 | . . . . . . . . . 1 . . . . . 1 Uniques/NPCs Destroyed 1 | . . . . . . . . . . . . . . . 1 Z-Imprinter (-7/Deep Caves) Combat | -11 -10 -10 -10 -9 -8 -8 -7 -7 -7 -7 -7 -7 -7 -7 -7 -------- Run | Yrd Mat Min Exi Min Mat Gar Fac Was Fac Gar Fac Low Low Zio Dee Hostile Shots Fired 341 | . 43 9 . . 40 70 . 1 14 12 24 29 2 . 97 Missed 94 | . 10 5 . . 13 14 . . 3 5 12 9 1 . 22 Hits 247 | . 33 4 . . 27 56 . 1 11 7 12 20 1 . 75 Melee 4 | . . . . . . . . 1 . . . . 1 . 2 Projectile 243 | . 33 4 . . 27 56 . . 11 7 12 20 . . 73 AOE 1 | . . . . . . . . . 1 . . . . . . Critical Strikes 10 | . . . . . 1 2 . 1 . 1 1 1 . . 3 Actively Blocked 1 | . . . . . . . . . . . . 1 . . . Part Disruptions 1 | . . . . . . . . . . 1 . . . . . Damage Taken 5199 | . 450 64 . . 340 872 . 51 209 150 260 372 . . 2431 Core 945 | . 20 . . . 54 162 . . . . 11 21 . . 677 Absorbed by Shields 14 | . . . . . . . . . 14 . . . . . . Redirected to Shielding 210 | . . . . . . . . . . . . 86 . . 124 Regen/Repaired (Parts) 564 | . 58 . . . 108 . 107 222 54 15 . . . . . Core Remaining (%) 84 | 100 . . . 92 . 60 . . . . . . . . . Volleys Fired 375 | 12 62 56 . 8 48 63 1 5 13 27 18 14 3 5 40 Largest 3 | 2 2 2 . 2 3 3 3 3 3 3 3 3 3 1 3 Hottest 225 | 60 100 100 . 106 183 183 183 225 225 225 225 225 225 . 225 Shots Fired 845 | 23 120 88 . 18 140 165 3 14 38 57 52 32 7 5 83 Gun 651 | 23 52 . . 18 139 163 3 14 38 51 51 27 7 . 65 Cannon 133 | . 64 63 . . . . . . . . . . . . 6 Launcher 23 | . . . . . 1 2 . . . 6 1 5 . . 8 Special 38 | . 4 25 . . . . . . . . . . . 5 4 Kinetic 191 | 12 116 63 . . . . . . . . . . . . . Thermal 612 | 11 4 25 . 18 139 163 3 14 38 51 51 27 7 . 61 Explosive 23 | . . . . . 1 2 . . . 6 1 5 . . 8 Electromagnetic . | . . . . . . . . . . . . . . . . Phasic 10 | . . . . . . . . . . . . . . . 10 Robot Hit Streak 21 | 6 14 8 . 6 21 14 15 19 9 5 11 8 3 . 4 Robot Miss Streak 5 | 3 3 4 . 2 3 2 . 1 2 3 5 4 2 . 4 Penetration Max . | . . . . . . . . . . . . . . . . Secondary Targets 5 | . 1 . . . 2 . . . . 1 . . . . 1 Max Gunslinging Chain 1 | . 1 . . . 1 . . . . 1 . . . . 1 Shots Hit Robots 480 | 13 71 36 . 12 97 105 2 14 21 24 31 18 4 . 32 Core Hits 282 | 7 31 16 . 6 40 40 1 4 10 20 15 16 1 . 75 Critical Kills 1 | . . . . . . . . . . . . . . . 1 Critical Parts Destroyed 1 | . . . . . . . . . . . 1 . . . . Critical Strikes 27 | . . 3 . 2 11 6 . 1 . . 3 . . . 1 Burn 22 | . . . . 2 11 6 . 1 . . 2 . . . . Blast 3 | . . 3 . . . . . . . . . . . . . Smash 2 | . . . . . . . . . . . 1 . . . 1 Melee Attacks 151 | . . . . . 9 61 . 2 15 17 34 8 . . 5 Impact 64 | . . . . . . . . . . 17 34 8 . . 5 Slashing 87 | . . . . . 9 61 . 2 15 . . . . . . Piercing . | . . . . . . . . . . . . . . . . Sneak Attacks 4 | . . . . . . . . 2 . . 2 . . . . Combat Hostiles . | . . . . . . . . . . . . . . . . Follow-up Attacks . | . . . . . . . . . . . . . . . . Damage Inflicted 14595 | 178 1159 673 . 207 1928 2184 32 425 522 1380 894 824 91 . 4098 Guns 7632 | 178 448 . . 173 1720 2012 32 295 489 548 702 282 91 . 662 Cannons 1453 | . 706 668 . . . . . . . . . . . . 79 Explosions 4794 | . . . . . 208 172 . . . 738 . 542 . . 3134 Melee 672 | . . . . . . . . 130 33 94 192 . . . 223 Ramming 44 | . 5 5 . 34 . . . . . . . . . . . Kinetic 1929 | 107 1154 668 . . . . . . . . . . . . . Thermal 7404 | 71 . . . 173 1720 2012 32 295 489 548 702 282 91 . 989 Explosive 4546 | . . . . . 208 172 . . . 738 . 542 . . 2886 Electromagnetic . | . . . . . . . . . . . . . . . . Impact 509 | . . . . . . . . . . 94 192 . . . 223 Slashing 163 | . . . . . . . . 130 33 . . . . . . Piercing . | . . . . . . . . . . . . . . . . Highest Corruption 3 | . 2 2 2 2 . . . . . 3 3 . . . . Average Corruption 2 | . 2 2 2 2 . . . . . 2 2 . . . . Corruption Purged 4 | . . . . . . . . . . . 4 . . . . Corruption Blocked . | . . . . . . . . . . . . . . . . Effects 69 | . 11 27 6 7 . . . . . 5 13 . . . . Message Errors 20 | . 4 7 . 1 . . . . . . 8 . . . . Matter Fused 21 | . 3 6 2 3 . . . . . 4 3 . . . . Heat Flow Errors 7 | . . 5 1 . . . . . . 1 . . . . . Energy Discharges 8 | . 2 4 1 1 . . . . . . . . . . . Parts Rejected 1 | . 1 . . . . . . . . . . . . . . Data Loss (minor) 3 | . . 1 1 . . . . . . . 1 . . . . Data Loss (major) 3 | . 1 1 1 . . . . . . . . . . . . Misfires 4 | . . 2 . 2 . . . . . . . . . . . Alerts 1 | . . . . . . . . . . . 1 . . . . Weapon Failures 1 | . . 1 . . . . . . . . . . . . . Overload Shots . | . . . . . . . . . . . . . . . . Overflow Damage 466 | . . . . . 8 42 . . . 112 132 24 . . 148 Projectiles . | . . . . . . . . . . . . . . . . Explosions 208 | . . . . . 8 42 . . . 47 . 24 . . 87 Melee 258 | . . . . . . . . . . 65 132 . . . 61 Knockbacks 6 | . . 6 . . . . . . . . . . . . . Impact . | . . . . . . . . . . . . . . . . Kinetic 6 | . . 6 . . . . . . . . . . . . . Secondary . | . . . . . . . . . . . . . . . . Self-Inflicted Damage 103 | . . . . . 4 57 . . . 42 . . . . . Shots 3 | . . . . . 1 1 . . . 1 . . . . . Rammed 7 | . 2 1 . 4 . . . . . . . . . . . Targets Rammed 7 | . 2 1 . 4 . . . . . . . . . . . Kicked . | . . . . . . . . . . . . . . . . Crushed . | . . . . . . . . . . . . . . . . Highest Temperature 485 | . 84 264 147 90 197 485 . 42 5 219 23 8 . . 144 Average Temperature 82 | . 37 59 76 32 88 113 . 19 3 142 17 7 . . 59 Received Heat Transfer 1404 | . 180 33 . . 90 396 . . 27 . 39 126 . . 513 Siege Activations . | . . . . . . . . . . . . . . . . Martial Activations . | . . . . . . . . . . . . . . . . Shielding Activations . | . . . . . . . . . . . . . . . . Robots Disrupted . | . . . . . . . . . . . . . . . . Combat Hostiles . | . . . . . . . . . . . . . . . . Robots Corrupted 2 | . . . . . . . . . . 1 1 . . . . Combat Hostiles . | . . . . . . . . . . . . . . . . Parts Fried 3 | . . . . . . . . . . . 3 . . . . Impact Corruptions 6 | . . . . . . . . . . 1 4 . . . 1 Robots Melted 4 | . . . . . . 1 . 1 1 . . . 1 . . Combat Hostiles 4 | . . . . . . 1 . 1 1 . . . 1 . . Parts Melted 43 | . . . . . 12 13 . 1 5 2 3 5 . . 2 Heat Transferred 16475 | 150 . . . 629 4401 4366 74 774 1100 1200 1700 650 200 . 1231 Parts Sabotaged . | . . . . . . . . . . . . . . . . Parts Stolen 1 | . . . . . . . . . . . . . 1 . . Parts Stripped . | . . . . . . . . . . . . . . . . Power Chain Reactions . | . . . . . . . . . . . . . . . . Alert | -11 -10 -10 -10 -9 -8 -8 -7 -7 -7 -7 -7 -7 -7 -7 -7 ------- Run | Yrd Mat Min Exi Min Mat Gar Fac Was Fac Gar Fac Low Low Zio Dee Maximum Alert Level 3 | . . . . . 1 3 2 . 1 3 2 . . . . Low Security (%) 66 | 100 100 100 . 100 88 14 . 100 84 . 3 . . . . Level 1 16 | . . . . . 11 25 38 . 15 29 67 . . . . Level 2 12 | . . . . . . 42 61 . . 31 29 . . . . Level 3 4 | . . . . . . 18 . . . 39 . . . . . Level 4 . | . . . . . . . . . . . . . . . . Level 5 . | . . . . . . . . . . . . . . . . High Security . | . . . . . . . . . . . . . . . . Max Security . | . . . . . . . . . . . . . . . . Peak Influence 1017 | 10 100 159 . 52 368 1017 533 118 313 1016 533 . . . . Initial 533 | . . 18 . . . 64 533 118 . 216 533 . . . . Average 188 | 1 31 33 . 3 93 518 425 42 129 601 335 . . . . Influence Increases 4867 | 30 476 335 . 52 978 963 19 34 683 910 295 92 . . . Destroy 0b10 Robot/C 2240 | . 220 220 . 40 540 480 . . 260 300 100 80 . . . Destroy 0b10 Robot/NC 275 | 30 70 40 . . 65 . 5 . 20 10 35 . . . . Destroy Leader 356 | . 56 10 . . 152 20 . . 74 20 24 . . . . Allied During Kill 503 | . . 35 . 12 79 . . . 260 105 . 12 . . . Trap Triggered on 0b10 10 | . . 10 . . . . . . . . . . . . . Successful Hack 206 | . 80 7 . . 15 28 14 . 28 18 16 . . . . Disable Machine 120 | . . . . . 30 15 . . 15 60 . . . . . Anti-Garrison Action 700 | . . . . . . 350 . . . 350 . . . . . Destroy Structure 232 | . 5 13 . . 22 55 . 34 11 47 45 . . . . Partial Spotted 45 | . 15 . . . 15 . . . . . 15 . . . . Lose Combat Pursuer 180 | . 30 . . . 60 15 . . 15 . 60 . . . . Influence Decreases 4867 | 30 428 245 138 52 879 45 698 372 374 203 1015 388 . . . Entered New Map 1593 | . . 30 138 . . 35 484 220 . 93 483 110 . . . Time Decay 2673 | 30 408 215 . 52 508 . 214 142 314 . 522 268 . . . Lost Part 90 | . 20 . . . 30 10 . 10 . . 10 10 . . . Lost Ally 210 | . . . . . 40 . . . 60 110 . . . . . Purge Threat 301 | . . . . . 301 . . . . . . . . . . Squads Dispatched 13 | . 3 . . . 1 . 1 . 3 . 5 . . . . Investigation 3 | . 1 . . . . . . . 1 . 1 . . . . Extermination 5 | . . . . . . . 1 . 1 . 3 . . . . Reinforcement 4 | . 2 . . . 1 . . . . . 1 . . . . Assault . | . . . . . . . . . . . . . . . . Garrison 1 | . . . . . . . . . 1 . . . . . . Intercept . | . . . . . . . . . . . . . . . . Searches Triggered . | . . . . . . . . . . . . . . . . Construction Impeded . | . . . . . . . . . . . . . . . . Haulers Reinforced . | . . . . . . . . . . . . . . . . Active Scanning Responses . | . . . . . . . . . . . . . . . . Cargo Convoy Interrupts . | . . . . . . . . . . . . . . . . Stealth | -11 -10 -10 -10 -9 -8 -8 -7 -7 -7 -7 -7 -7 -7 -7 -7 --------- Run | Yrd Mat Min Exi Min Mat Gar Fac Was Fac Gar Fac Low Low Zio Dee Distress Signals 5 | . . 2 . . 3 . . . . . . . . . . Communications Jammed . | . . . . . . . . . . . . . . . . Distress Signals . | . . . . . . . . . . . . . . . . Times Spotted 209 | . 22 8 . 1 34 21 1 6 13 15 19 10 1 . 58 Peak Tracking Total 35 | . 3 2 . . 5 3 1 6 4 5 5 5 1 . 35 Tactical Retreats 8 | . 1 . . . 3 1 . . 1 . 2 . . . . Traps | -11 -10 -10 -10 -9 -8 -8 -7 -7 -7 -7 -7 -7 -7 -7 -7 ------- Run | Yrd Mat Min Exi Min Mat Gar Fac Was Fac Gar Fac Low Low Zio Dee Traps Triggered 15 | . 5 . . . 1 3 1 . 1 . 4 . . . . Indirectly . | . . . . . . . . . . . . . . . . Trap Hack Attempts . | . . . . . . . . . . . . . . . . Triggered . | . . . . . . . . . . . . . . . . Disarmed . | . . . . . . . . . . . . . . . . Reprogrammed . | . . . . . . . . . . . . . . . . Reused 1 | . . 1 . . . . . . . . . . . . . Traps Extracted . | . . . . . . . . . . . . . . . . Installed 2 | . . 2 . . . . . . . . . . . . . Triggered 1 | . . 1 . . . . . . . . . . . . . Machines | -11 -10 -10 -10 -9 -8 -8 -7 -7 -7 -7 -7 -7 -7 -7 -7 ---------- Run | Yrd Mat Min Exi Min Mat Gar Fac Was Fac Gar Fac Low Low Zio Dee Machines Disabled 23 | . . . . . 2 6 . . 1 11 . 1 . . 2 Max in Single Turn 2 | . . . . . 1 1 . . 1 2 . 1 . . 1 Garrison Relay 12 | . . . . . . 5 . . . 7 . . . . . Machines Repaired . | . . . . . . . . . . . . . . . . Machines Dismantled . | . . . . . . . . . . . . . . . . Machines Sabotaged . | . . . . . . . . . . . . . . . . Overloaded Fab Kills . | . . . . . . . . . . . . . . . . Hacking | -11 -10 -10 -10 -9 -8 -8 -7 -7 -7 -7 -7 -7 -7 -7 -7 --------- Run | Yrd Mat Min Exi Min Mat Gar Fac Was Fac Gar Fac Low Low Zio Dee Machines Accessed 56 | . 8 1 2 1 18 3 5 . 4 1 10 2 . 1 . Terminals 31 | . 6 1 . . 12 3 2 . 3 1 3 . . . . Fabricators 4 | . . . . . . . 1 . . . 3 . . . . Repair Stations 5 | . 1 . . . 2 . 1 . . . 1 . . . . Recycling Units 3 | . 1 . . . 2 . . . . . . . . . . Scanalyzers 2 | . . . . . 1 . . . . . 1 . . . . Garrison Access 5 | . . . . . 1 . 1 . 1 . 2 . . . . Total Hacks 130 | . 29 2 3 1 45 5 7 . 9 3 15 4 . 7 . Successful 75 | . 18 1 3 1 29 2 3 . 2 2 3 4 . 7 . Failed 55 | . 11 1 . . 16 3 4 . 7 1 12 . . . . Catastrophic 16 | . . . . . 2 2 1 . 4 . 7 . . . . Database Lockouts . | . . . . . . . . . . . . . . . . Manual 51 | . 14 2 1 . 22 1 1 . 4 1 4 1 . . . Terminals 76 | . 20 2 . . 32 5 2 . 7 3 5 . . . . Fabricators 6 | . . . . . . . 2 . . . 4 . . . . Repair Stations 13 | . 4 . . . 6 . 2 . . . 1 . . . . Recycling Units 9 | . 5 . . . 4 . . . . . . . . . . Scanalyzers 3 | . . . . . 2 . . . . . 1 . . . . Garrison Access 8 | . . . . . 1 . 1 . 2 . 4 . . . . Terminal Hacks 41 | . 8 1 3 1 13 2 . . . 2 . 4 . 7 . Record 5 | . . . 2 . . . . . . . . 3 . . . Part Schematic 9 | . 1 1 . . . . . . . . . . . 7 . Robot Analysis 4 | . 4 . . . . . . . . . . . . . . Prototype ID Bank 2 | . . . . . 2 . . . . . . . . . . Open Door 2 | . . . . 1 . . . . . . . 1 . . . Branch Access Points 1 | . . . . . 1 . . . . . . . . . . Emergency Access Points 1 | . . . . . . 1 . . . . . . . . . Terminal Index 1 | . . . . . 1 . . . . . . . . . . Repair Station Index 1 | . 1 . . . . . . . . . . . . . . Alert Level 1 | . . . . . 1 . . . . . . . . . . Unreport Threat 3 | . . . . . 3 . . . . . . . . . . Locate Traps 2 | . 1 . . . 1 . . . . . . . . . . Hauler Manifests 1 | . . . . . 1 . . . . . . . . . . Registered Components 2 | . 1 . . . 1 . . . . . . . . . . Zone Layout 2 | . . . . . 2 . . . . . . . . . . Garrison Registry 2 | . . . . . . 1 . . . 1 . . . . . Patrol Navigation 1 | . . . . . . . . . . 1 . . . . . Proto ID Catalog 1 | . . . 1 . . . . . . . . . . . . Fabricator Hacks 1 | . . . . . . . . . . . 1 . . . . Load Schematic 1 | . . . . . . . . . . . 1 . . . . Repair Station Hacks 10 | . 3 . . . 5 . 2 . . . . . . . . Scan Component 6 | . 2 . . . 3 . 1 . . . . . . . . Repair 4 | . 1 . . . 2 . 1 . . . . . . . . Recycling Unit Hacks 3 | . 1 . . . 2 . . . . . . . . . . Retrieve Components 3 | . 1 . . . 2 . . . . . . . . . . Scanalyzer 2 | . . . . . 2 . . . . . . . . . . Insert Component 2 | . . . . . 2 . . . . . . . . . . Garrison Access Hacks 3 | . . . . . 1 . 1 . 1 . . . . . . Unlock Access 3 | . . . . . 1 . 1 . 1 . . . . . . Unauthorized Hacks 15 | . 6 . . . 6 . . . 1 . 2 . . . . Terminals 12 | . 4 . . . 6 . . . 1 . 1 . . . . Assimilate 3 | . 1 . . . . . . . 1 . 1 . . . . Botnet 6 | . 2 . . . 4 . . . . . . . . . . Disrupt 1 | . . . . . 1 . . . . . . . . . . Operators 2 | . 1 . . . 1 . . . . . . . . . . Fabricators 1 | . . . . . . . . . . . 1 . . . . Recompile 1 | . . . . . . . . . . . 1 . . . . Repair Stations . | . . . . . . . . . . . . . . . . Recycling Units 2 | . 2 . . . . . . . . . . . . . . Reject 1 | . 1 . . . . . . . . . . . . . . Mask 1 | . 1 . . . . . . . . . . . . . . Scanalyzers . | . . . . . . . . . . . . . . . . Garrison Access . | . . . . . . . . . . . . . . . . Data Cores Recovered . | . . . . . . . . . . . . . . . . Used . | . . . . . . . . . . . . . . . . Hacking Detections 47 | . 8 1 . . 16 3 5 . 4 1 9 . . . . Full Trace Events 1 | . . . . . . . . . 1 . . . . . . Feedback Events . | . . . . . . . . . . . . . . . . Feedback Blocked . | . . . . . . . . . . . . . . . . Robot Schematics Acquired . | . . . . . . . . . . . . . . . . Robots Built . | . . . . . . . . . . . . . . . . Authchips . | . . . . . . . . . . . . . . . . Time . | . . . . . . . . . . . . . . . . Total Robot Build Rating . | . . . . . . . . . . . . . . . . Part Schematics Acquired 9 | . 1 1 . . . . . . . . . . . 7 . Parts Built . | . . . . . . . . . . . . . . . . Authchips . | . . . . . . . . . . . . . . . . Time . | . . . . . . . . . . . . . . . . Total Part Build Rating . | . . . . . . . . . . . . . . . . Parts Repaired 4 | . 1 . . . 2 . 1 . . . . . . . . Time 158 | . 26 . . . 88 . 44 . . . . . . . . Parts Recycled . | . . . . . . . . . . . . . . . . Recycled Matter . | . . . . . . . . . . . . . . . . Retrieved Matter . | . . . . . . . . . . . . . . . . Retrieved Components 10 | . . . . . 10 . . . . . . . . . . Parts Scanalyzed . | . . . . . . . . . . . . . . . . Part Schematics Acquired . | . . . . . . . . . . . . . . . . Parts Damaged . | . . . . . . . . . . . . . . . . Bothacking | -11 -10 -10 -10 -9 -8 -8 -7 -7 -7 -7 -7 -7 -7 -7 -7 ------------ Run | Yrd Mat Min Exi Min Mat Gar Fac Was Fac Gar Fac Low Low Zio Dee Used RIF Installer . | . . . . . . . . . . . . . . . . Robots Hacked . | . . . . . . . . . . . . . . . . Non-combat . | . . . . . . . . . . . . . . . . Combat . | . . . . . . . . . . . . . . . . Robot Hacks Applied . | . . . . . . . . . . . . . . . . Relay Couplers Released 45 | . . . . . . 19 . . . 26 . . . . . Machine Destruction 45 | . . . . . . 19 . . . 26 . . . . . Fabnet Peak Effective % . | . . . . . . . . . . . . . . . . Robots Rewired 2 | . . . . . . . . . . . . 2 . . . Allies Hacked 1 | . . . . . . . . . . 1 . . . . . Hacks Repelled . | . . . . . . . . . . . . . . . . Allies | -11 -10 -10 -10 -9 -8 -8 -7 -7 -7 -7 -7 -7 -7 -7 -7 -------- Run | Yrd Mat Min Exi Min Mat Gar Fac Was Fac Gar Fac Low Low Zio Dee Total Allies 32 | . . 3 . 2 . . . 19 1 . 1 2 . 4 . Largest Group 19 | . . 3 3 5 5 . . 19 12 8 1 2 2 6 6 Highest-Rated Group 475 | . . 40 40 93 93 . . 475 346 225 26 62 54 178 178 Highest-Rated Ally 35 | . . 16 16 31 31 . . 35 31 31 26 31 31 32 32 Initial Warlord ECA Mod 122 | . . . . . . . 8 8 8 8 18 18 18 18 18 Total Orders 4 | . . 4 . . . . . . . . . . . . . STAY 3 | . . 3 . . . . . . . . . . . . . FOLLOW 1 | . . 1 . . . . . . . . . . . . . Ally Attacks 551 | . . 29 . 7 86 . . 111 67 73 . 22 3 . 153 Total Damage 10824 | . . 268 . 103 1268 . . 4105 1141 1322 . 421 64 . 2132 Kills 69 | . . 4 . 2 15 . . 9 11 7 . 3 . . 18 Allies Corrupted 1 | . . . . . . . . . . 1 . . . . . Allies Melted . | . . . . . . . . . . . . . . . . Intel | -11 -10 -10 -10 -9 -8 -8 -7 -7 -7 -7 -7 -7 -7 -7 -7 ------- Run | Yrd Mat Min Exi Min Mat Gar Fac Was Fac Gar Fac Low Low Zio Dee Active Infowar (turns) 5159 | 66 1795 1992 508 445 . . . . . . . . . . 353 Seismic 4806 | 66 1795 1992 508 445 . . . . . . . . . . . Jamming 353 | . . . . . . . . . . . . . . . 353 Robot Analysis Total 4 | . 4 . . . . . . . . . . . . . . Derelict Logs Recovered 7 | . . 1 . 2 . . . . . . . 1 1 2 . Drone Launches . | . . . . . . . . . . . . . . . . Drone Recoveries . | . . . . . . . . . . . . . . . . Exploration | -11 -10 -10 -10 -9 -8 -8 -7 -7 -7 -7 -7 -7 -7 -7 -7 ------------- Run | Yrd Mat Min Exi Min Mat Gar Fac Was Fac Gar Fac Low Low Zio Dee Turns Passed 18086 | 148 1795 1992 508 878 2471 1473 454 453 751 788 1441 822 288 2501 1323 Spaces Moved 10691 | 78 934 721 314 496 1582 715 351 295 507 467 1013 498 224 1503 993 Core 23 | 8 . . . . . . . . . . . . . . 15 Treads 2292 | . 761 721 314 496 . . . . . . . . . . . Legs 7566 | 70 173 . . . 1582 715 351 295 507 467 1013 498 224 1503 168 Wheels . | . . . . . . . . . . . . . . . . Hover 810 | . . . . . . . . . . . . . . . 810 Flight . | . . . . . . . . . . . . . . . . Fastest Speed 24 | 50 120 160 160 160 120 120 120 120 120 120 120 120 120 125 24 Average Speed 133 | 112 152 160 160 160 121 120 120 127 120 120 120 135 122 161 93 Slowest Speed 400 | 120 240 160 160 160 125 120 120 190 120 190 190 190 125 196 400 Overloaded Moves . | . . . . . . . . . . . . . . . . Propulsion Burnouts . | . . . . . . . . . . . . . . . . Robots Hopped . | . . . . . . . . . . . . . . . . Potential Cave-ins . | . . . . . . . . . . . . . . . . Cave-ins Triggered . | . . . . . . . . . . . . . . . . Exploration Rate (%) 63 | 3 98 94 69 93 96 74 9 96 13 65 35 61 46 81 76 Regions Visited 15 Branch Regions 7 Pre-discovered Areas 4 | . . 1 1 . . . . . . . . 1 . 1 . Known Exits Taken 3 | . . . . . 1 . . . 1 . . . . 1 . Unknown Exits Taken 8 | 1 1 1 1 1 . . . . . . 1 1 1 . . Scrap Searched 13 | . . 1 . 2 . . . . . . . 2 6 2 . Spaces Dug 137 | . 4 12 . . 19 42 . . 10 10 31 7 . . 2 Terrain Destroyed 323 | . 4 16 . . 19 42 . . 10 71 45 64 . . 52 Melee 81 | . . . . . 9 14 . . 10 10 31 7 . . . Projectile 39 | . 4 16 . . . . . . . 1 . . . . 18 AOE 203 | . . . . . 10 28 . . . 60 14 57 . . 34 Terrain Rammed . | . . . . . . . . . . . . . . . . Walls Destroyed . | . . . . . . . . . . . . . . . . Machines Disabled . | . . . . . . . . . . . . . . . . Actions | -11 -10 -10 -10 -9 -8 -8 -7 -7 -7 -7 -7 -7 -7 -7 -7 --------- Run | Yrd Mat Min Exi Min Mat Gar Fac Was Fac Gar Fac Low Low Zio Dee Total 13494 | 111 1174 1428 321 571 2018 1102 382 357 596 607 1123 602 232 1567 1303 Wait 1697 | 8 118 633 1 41 245 220 14 32 47 79 31 43 3 12 170 Move 10679 | 77 933 720 313 495 1582 714 351 294 507 466 1012 497 223 1502 993 Hop . | . . . . . . . . . . . . . . . . Pick Up 116 | 6 20 6 1 9 29 7 3 5 4 2 5 2 . 6 11 Fast Attach 60 | 7 7 . . . 8 2 3 2 . . 1 3 1 9 17 Attach 45 | . 1 . 2 1 9 1 3 4 1 . 2 3 . 5 13 Detach 17 | . 1 . . . . . . 3 . . . 2 . 2 9 Swap 169 | 1 14 3 1 2 50 25 3 7 6 14 15 9 1 7 11 Drop 157 | . 16 7 3 11 38 7 4 3 3 2 5 4 1 19 34 Fire 375 | 12 62 56 . 8 48 63 1 5 13 27 18 14 3 5 40 Melee 151 | . . . . . 9 61 . 2 15 17 34 8 . . 5 Ram . | . . . . . . . . . . . . . . . . Kick . | . . . . . . . . . . . . . . . . Crush 7 | . 2 1 . 4 . . . . . . . . . . . Escape Stasis 2 | . . . . . . 2 . . . . . . . . . Rewire 17 | . . . . . . . . . . . . 17 . . . Trap 2 | . . 2 . . . . . . . . . . . . . Miscellaneous . | . . . . . . . . . . . . . . . . Route ------- -11/Scrapyard -10/Materials (discovered 4 exits: [*Mat x3] / *Min) -10/Mines (discovered 3 exits: [*Mat x2] / *Exi) -10/Exiles -9/Mines (discovered 2 exits: *Mat x2) -8/Materials (discovered 4 exits: *Fac x3 / Gar) -8/Garrison (discovered 3 exits: *Fac x3) -7/Factory (discovered 2 exits: *Low / Gar) -7/Waste -7/Factory (discovered 2 exits: *Fac / Gar) -7/Garrison (discovered 3 exits: *Fac x3) -7/Factory (discovered 3 exits: *Fac x2 / *Low) -7/Lower Caves -7/Lower Caves -7/Zion -7/Deep Caves (discovered 1 exit: [*Pro]) History --------- Turn | Location | Event 11 | -11/Scrapyard | Discovered new exit (range 14) 149 | -11/Scrapyard | Entered Materials 317 | -10/Materials | Build established: Mutant 393 | -10/Materials | Discovered new exit (range 15) 633 | -10/Materials | Discovered new exit (range 16) 984 | -10/Materials | Discovered new exit (range 10) 1008 | -10/Materials | Discovered new exit (range 16) 1522 | -10/Materials | Repaired Lgt. Treads 1944 | -10/Materials | Entered Mines 2164 | -10/Mines | Learned location of Zion (-7) 2172 | -10/Mines | Deemed a non-threat by the Exiles lab entrance 2172 | -10/Mines | Discovered new exit (range 5) 2287 | -10/Mines | Found a hidden stash of uninstalled traps 2307 | -10/Mines | Discovered new exit (range 4) 2388 | -10/Mines | Assisted by bots powering up and referring to "LRC-V3" 2672 | -10/Mines | Excavation squad dispatched 2672 | -10/Mines | A large section of the Mines collapsed 2922 | -10/Mines | Excavation squad dispatched 3172 | -10/Mines | Excavation squad dispatched 3753 | -10/Mines | Discovered new exit (range 8) 3936 | -10/Mines | Entered Exiles 3936 | -10/Exiles | Accompanied by 3 allies 3975 | -10/Exiles | Met 8R-AWN 4004 | -10/Exiles | Met EX-HEX 4045 | -10/Exiles | Met EX-BIN 4075 | -10/Exiles | Met EX-DEC 4205 | -10/Exiles | Aligned with FarCom system 4206 | -10/Exiles | Given EX-Vault access code 4243 | -10/Exiles | Opened EX-Vault 4256 | -10/Exiles | Found YOLO Cannon 4286 | -10/Exiles | Warned to stay clear of 0b10 Research branches 4425 | -10/Exiles | Discovered new exit (range 14) 4444 | -10/Exiles | Left Exiles lab with YOLO Cannon 4444 | -10/Exiles | Entered Mines 4444 | -9/Mines | Accompanied by 3 allies 4461 | -9/Mines | Received a Rocket Launcher from a helpful Derelict 4547 | -9/Mines | Learned Materials emergency access door positions 5093 | -9/Mines | Discovered new exit (range 8) 5199 | -9/Mines | Discovered new exit (range 9) 5216 | -9/Mines | Found the Drone Emporium 5227 | -9/Mines | Found Prototype Device 5322 | -9/Mines | Entered Materials 5322 | -8/Materials | Accompanied by 5 allies 5322 | -8/Materials | Evolved 4 slots: Propulsion x2, Utility x1, Weapon x1 5323 | -8/Materials | Identified exit to Factory 5327 | -8/Materials | Led the pair of lost Derelicts to an unsafe place 5521 | -8/Materials | Lost 3 allies 5634 | -8/Materials | Build established: Scavenger-Skirmisher 5971 | -8/Materials | Discovered exit to Factory (range 14) 6025 | -8/Materials | Identified Bomb Drone Bay 6338 | -8/Materials | Build established: Skirmisher 6342 | -8/Materials | Discovered exit to Factory (range 16) 6819 | -8/Materials | Repaired Imp. Carbon-fiber Leg 7468 | -8/Materials | Repaired Imp. Carbon-fiber Leg 7578 | -8/Materials | Build established: Mutant 7793 | -8/Materials | Identified exit to Garrison 7793 | -8/Materials | Entered Garrison 8002 | -8/Garrison | Garrison Relay disabled 8061 | -8/Garrison | Triggered checkpoint 8177 | -8/Garrison | Garrison Relay disabled 8218 | -8/Garrison | Discovered exit to Factory (range 15) 8313 | -8/Garrison | Triggered checkpoint 8365 | -8/Garrison | Triggered checkpoint 8395 | -8/Garrison | Discovered exit to Factory (range 26) 8395 | -8/Garrison | Discovered exit to Factory (range 37) 8395 | -8/Garrison | Discovered exit to Factory (range 75) 8405 | -8/Garrison | Garrison Relay disabled 8507 | -8/Garrison | Triggered checkpoint 8547 | -8/Garrison | Triggered checkpoint 8740 | -8/Garrison | Triggered checkpoint 8927 | -8/Garrison | Triggered checkpoint 9180 | -8/Garrison | Garrison Relay disabled 9233 | -8/Garrison | Garrison Relay disabled 9266 | -8/Garrison | Entered Factory 9266 | -7/Factory | Evolved 2 slots: Utility x2 9289 | -7/Factory | Discovered new exit (range 8) 9412 | -7/Factory | Repaired Imp. Carbon-fiber Leg 9618 | -7/Factory | Build established: Tank 9698 | -7/Factory | Identified exit to Garrison 9720 | -7/Factory | Sucked down chute 9720 | -7/Factory | Entered Waste 9756 | -7/Waste | Spotted C-40 Crusher 9756 | -7/Waste | Spotted C-40 Crusher 9759 | -7/Waste | Spotted C-40 Crusher 9761 | -7/Waste | Spotted C-40 Crusher 9764 | -7/Waste | Spotted C-40 Crusher 9767 | -7/Waste | Crushed by Compactor (1 part destroyed, 1 dropped) 9776 | -7/Waste | Spotted C-40 Crusher 9782 | -7/Waste | Warlord forces began an assault 9799 | -7/Waste | Allies destroyed C-40 Crusher 9803 | -7/Waste | Allies destroyed C-40 Crusher 9809 | -7/Waste | Allies destroyed C-40 Crusher 9810 | -7/Waste | Destroyed C-40 Crusher 9815 | -7/Waste | Allies destroyed C-40 Crusher 9834 | -7/Waste | Lost 5 allies 9997 | -7/Waste | Discovered new exit (range 16) 10080 | -7/Waste | Found Imp. Powered Armor 10101 | -7/Waste | Build established: Skirmisher 10173 | -7/Waste | Entered Factory 10173 | -7/Factory | Accompanied by 12 allies 10313 | -7/Factory | Discovered new exit (range 11) 10365 | -7/Factory | Identified exit to Factory 10829 | -7/Factory | Garrison activated, responded to threat 10902 | -7/Factory | Lost 3 allies 10922 | -7/Factory | Identified exit to Garrison 10924 | -7/Factory | Entered Garrison 10924 | -7/Garrison | Accompanied by 8 allies 10951 | -7/Garrison | H-XX Assembler disabled 11019 | -7/Garrison | Discovered new exit (range 82) 11019 | -7/Garrison | Discovered new exit (range 52) 11019 | -7/Garrison | Discovered new exit (range 79) 11101 | -7/Garrison | Garrison Relay disabled 11148 | -7/Garrison | Triggered checkpoint 11197 | -7/Garrison | Garrison Relay disabled 11232 | -7/Garrison | Triggered checkpoint 11379 | -7/Garrison | Triggered checkpoint 11458 | -7/Garrison | Garrison Relay disabled 11480 | -7/Garrison | Triggered checkpoint 11562 | -7/Garrison | Lost 5 allies 11573 | -7/Garrison | Garrison Relay disabled 11573 | -7/Garrison | Garrison Relay disabled 11576 | -7/Garrison | Garrison Relay disabled 11576 | -7/Garrison | Garrison Relay disabled 11670 | -7/Garrison | Identified exit to Factory 11712 | -7/Garrison | Entered Factory 12189 | -7/Factory | Discovered exit to Factory (range 13) 12248 | -7/Factory | Build established: Mutant 12359 | -7/Factory | P-60 Hacker assimilated allied Administrator 4b 12409 | -7/Factory | Allied Derelicts emerged from ambush trap array 12480 | -7/Factory | Discovered new exit (range 15) 12551 | -7/Factory | Discovered exit to Factory (range 6) 13153 | -7/Factory | Entered Lower Caves 13196 | -7/Lower Caves | Met a Warlord Commander 13197 | -7/Lower Caves | Learned location of Warlord (-4) 13198 | -7/Lower Caves | Warlord Commander delivered Encrypted Comm Array 13203 | -7/Lower Caves | Found Encrypted Comm Array 13267 | -7/Lower Caves | Attacked by a faux Warlord 13301 | -7/Lower Caves | Found Alien Artifact 13301 | -7/Lower Caves | Identified Core Expander 13301 | -7/Lower Caves | Installed Core Expander, added new Power slot 13549 | -7/Lower Caves | Build established: Gunner 13602 | -7/Lower Caves | Learned location of 1 exit from Factory 13602 | -7/Lower Caves | Learned Armory trap positions 13696 | -7/Lower Caves | Encountered a Warlord checkpoint 13714 | -7/Lower Caves | Learned 4 Factory zone layouts 13933 | -7/Lower Caves | Discovered new exit (range 12) 13951 | -7/Lower Caves | Acquired the password to a Derelict Tinkerer's latest research 13964 | -7/Lower Caves | Found Prototype Special Weapon 13975 | -7/Lower Caves | Entered another Lower Caves area 13975 | -7/Lower Caves | Accompanied by 2 allies 14089 | -7/Lower Caves | Learned Factory garrison access intel 14250 | -7/Lower Caves | Discovered new exit (range 7) 14263 | -7/Lower Caves | Entered Zion 14263 | -7/Zion | Accompanied by 2 allies 14496 | -7/Zion | Gained Derelict followers 14518 | -7/Zion | Learned Factory fabricator intel 14558 | -7/Zion | Learned 4 Factory zone layouts 14612 | -7/Zion | Gained Derelict followers 14925 | -7/Zion | Identified exit to Deep Caves 14940 | -7/Zion | Learned location of Extension (-4) 14987 | -7/Zion | Found Prototype Special Weapon 14987 | -7/Zion | Identified RU-N14's Throwing Claymores 15104 | -7/Zion | Found Prototype Launcher 15104 | -7/Zion | Identified Rocket Array 15117 | -7/Zion | Found Prototype Launcher 15117 | -7/Zion | Identified Gui. Missile Launcher 15263 | -7/Zion | Identified Molecular Deconstructor 15512 | -7/Zion | Found Prototype Energy Gun 15543 | -7/Zion | Build established: Derelict-Gunner 16069 | -7/Zion | Found RU-N14's Throwing Claymores 16483 | -7/Zion | Build established: Gunner 16745 | -7/Zion | Saw the warning signs outside the Deep Caves entrance 16764 | -7/Zion | Entered Deep Caves 16764 | -7/Deep Caves | Accompanied by 6 allies 16972 | -7/Deep Caves | Z-Facility disabled 16980 | -7/Deep Caves | Attacked by Z-Imprinter 16993 | -7/Deep Caves | Allies destroyed Z-Imprinter 17022 | -7/Deep Caves | Found Prototype Protection 17022 | -7/Deep Caves | Identified Zio. Weapon Casing 17034 | -7/Deep Caves | Found Prototype Device 17034 | -7/Deep Caves | Identified Zio. Metafield Generator 17235 | -7/Deep Caves | Lost 3 parts (2n1w) 17444 | -7/Deep Caves | Found Prototype Protection 17444 | -7/Deep Caves | Identified Zio. Heavy Carapace 17602 | -7/Deep Caves | Build established: Tank 17663 | -7/Deep Caves | Found Zio. Weapon Casing 17901 | -7/Deep Caves | Discovered new exit (range 7) 18024 | -7/Deep Caves | Spotted AG-47884 18043 | -7/Deep Caves | Triggered Deep Caves wall 18044 | -7/Deep Caves | Exposed GOLEM chamber 18046 | -7/Deep Caves | Destroyed AG-47884 18069 | -7/Deep Caves | Spotted AS-89068 18071 | -7/Deep Caves | Spotted AG-37167 18077 | -7/Deep Caves | Found GOLEM Unit 18078 | -7/Deep Caves | Core integrity fell below 50% 18081 | -7/Deep Caves | Destroyed 34 combat bots 18085 | -7/Deep Caves | Core integrity fell below 20% 18087 | -7/Deep Caves | Destroyed by AG-37167 with Assembled Focal Cannon Last Messages --------------- 18072_ AG-37167: "DSI9AT1D G8OHIBQ29FWG 26R186 QD12WHW8W33 TDK1 81FTS" 18073_ A GOLEM Unit tumbles out of the Wall Chamber. 18073_ as-52506 destroyed. 18074_ as-55998 released from Mobile Assembly Unit. 18077_ Acquired GOLEM Unit. 18078_ GOLEM Unit beginning Asb. Alloy Leg integration. 18078_ GOLEM Unit springs to life. 18079_ AG-28491 GOLEM Unit beginning Asb. Alloy Leg integration. 18080_ GOLEM Unit springs to life. 18081_ AG-35992 GOLEM Unit beginning Asb. Alloy Leg integration. 18084_ as-83681 released from Mobile Assembly Unit. 18084_ Exp. Heat Sink destroyed. 18086_ Penetrated by Slug. Map ----- +----------------------------------------------------+ | ??????????????????????????????# #????? | | ??????????????????????????????# ##???## | | ??????????????????????????????## #????# | | ???????????????????????????????## #???## | | ????????????????????????????????## #???# | | ?????????! ?????????????????????# #???# | | ????????? ???????????????????# #???# | | ??????### ????????????????# #??## | | ?????"" ??????????????# #### | | ????? ????????## ## ## | | ????? ???????# | | ????? = ??????# | | ????? [ ??###### | | ?????? #??????##### | | ?????? a #???###???### | | ??????? a [ #???# #????## | | ??????? aG b #???# ##???# | | ???????##a ! #???# ##??## | | ???????"GG ! #????# ##??# | | ???????"" g #?????# #### | | ???????"G ! l #??????# | | ???????""G a ! ##????## | | ????????"G #???## ### | | ????????# #??## #?? | | ????????" #??# ##? | | ????????" ! @/ #### #? | | ????????"*! s !% M a ## | | ????????""" [ M # | | ????????" % | | ????????"" *% #### | | ????????" #??## | | ????????"" ##???# | | ????????" # # #????# # | | ????????" #### ## ## ##????# ## | | ????????""" ###??# ## ####?????## ####? | | ?????????" ????#### #?????????#####???? | | ?????????#######???????#??????????????????? | | | | | | | | | | | | | | | | | | | | | | | | | | | +----------------------------------------------------+ Best States ------------- Heat Dissipation 144 Coolant Potential 50 Energy Generation 49 Energy Capacity 700 Matter Stores 300 Matter Capacity 300 Sight Range 16 Terrain Scan Density 10 Jamming Range 16 Armor Coverage 1600 Weapon Shielding 100 Evasion (%) 60 Targeting Accuracy 8 Core Analysis 6 Recoil Reduction 2 Offensive Hacking 10 Authchip Count 1 Item Schematics ----------------- Hcp. Storage Unit | -10/Materials | Hacked Aluminum Leg | -10/Mines | Hacked Riot Gun | -7/Zion | Free Battle Cannon | -7/Zion | Free Slug Cannon | -7/Zion | Free Ripper | -7/Zion | Free Hvy. Beamcaster | -7/Zion | Free Hvy. Battle Rifle | -7/Zion | Free Plasma Flamer | -7/Zion | Free Robot Schematics ------------------ None Fabricated ------------ Nothing Repaired ---------- Lgt. Treads | 58% | -10/Materials Imp. Carbon-fiber Leg | 46% | -8/Materials Imp. Carbon-fiber Leg | 67% | -8/Materials Imp. Carbon-fiber Leg | 14% | -7/Factory Alien Tech Used ----------------- Core Expander Achievements -------------- Killing Spree Challenges ------------ None Game ------ Seed InsulatedThunderCyclogen Manual? 0 Play Time 02:50:39 Cumulative 345.9 hours Start 2025.10.12 @ 09:32:25 End 2025.10.13 @ 19:34:29 Sessions 13 Manual Loads 0 Difficulty Rogue Special Mode None Game No. 231 Rogue 231 Adventurer 0 Explorer 0 Win Type - Total 4 Types 3/0/1/0/0/0/0/0/0/0 Lore% 77 Gallery% 77 Achievement% 69 Wizard Run 0 Options --------- Layout 1 ASCII 0 Keyboard 0 Movement Mouse Keybinds 0 Fullscreen 1 Font 24/Smallcaps Map View 50x40 Zoom Use 0% Tactical HUD 1 Map Filters NONE Filters NONE Steam 1 RUN: 5e3bc938-1bbf-41ed-858f-6c06c5398a30